bitfinex-derivatives/quotes_SOLF0:USTF0_20250105
["timestamp","ask_amount","ask_price","bid_price","bid_amount"]
[1736050022294,7.07101853,218.33,218.3,2.2909]
[1736050024190,7.07101853,218.33,218.27,7.07101853]
[1736050024898,7.07101853,218.41,218.39,2.29]
[1736050025086,1.3956,218.55,218.4,7.07101853]
[1736050025292,7.07101853,218.48,218.4,7.07101853]
[1736050025487,7.07101853,218.48,218.44,2.2894]
[1736050025691,7.07101853,218.46,218.44,2.2894]
[1736050026592,7.07101853,218.46,218.42,2.2896]
[1736050026993,7.07101853,218.46,218.4,7.07101853]
[1736050027590,7.07101853,218.46,218.41,2.2897]
[1736050027795,7.07101853,218.42,218.38,2.62]
[1736050030105,7.07101853,218.42,218.38,4.9101]
[1736050030598,7.07101853,218.4,218.34,7.07101853]
[1736050030804,7.07101853,218.4,218.36,2.2902]
[1736050031003,7.07101853,218.38,218.36,2.2902]
[1736050031305,7.07101853,218.38,218.33,2.2906]
[1736050031598,7.07101853,218.36,218.33,2.2906]
[1736050033607,7.07101853,218.36,218.34,2.2905]
[1736050033798,7.07101853,218.38,218.34,2.2905]
[1736050035808,7.07101853,218.38,218.32,2.62]
[1736050036008,7.07101853,218.38,218.35,2.2904]
[1736050042010,7.07101853,218.36,218.3,7.07101853]
[1736050042211,7.07101853,218.36,218.31,2.62]
[1736050042707,7.07101853,218.36,218.3,7.07101853]
[1736050042907,7.07101853,218.32,218.24,2.62]
[1736050043205,7.07101853,218.3,218.25,7.07101853]
[1736050043909,7.07101853,218.3,218.29,2.2911]
[1736050044300,11.08465929,218.34,218.29,2.2911]
[1736050046110,11.08465929,218.34,218.3,2.2909]
[1736050046307,11.08465929,218.37,218.24,13.70465929]
[1736050047411,11.08465929,218.37,218.32,2.2907]
[1736050047910,11.08465929,218.37,218.25,2.62]
[1736050048106,2.2903,218.36,218.29,2.291]
[1736050048514,11.08465929,218.34,218.29,2.291]
[1736050050112,4.9107,218.33,218.25,2.2914]
[1736050050307,11.08465929,218.31,218.25,2.2914]
[1736050051009,11.08465929,218.31,218.27,2.2913]
[1736050052810,2.62,218.33,218.21,11.08465929]
[1736050053211,2.62,218.33,218.31,2.2908]
[1736050056515,2.62,218.33,218.2,5.5351]
[1736050056708,11.08465929,218.31,218.2,5.5351]
[1736050056915,11.08465929,218.31,218.21,2.62]
[1736050057111,11.08465929,218.31,218.26,2.2913]
[1736050057320,11.08465929,218.31,218.21,2.62]
[1736050058016,11.08465929,218.31,218.24,2.2916]
[1736050058211,11.08465929,218.31,218.21,2.62]
[1736050058621,11.08465929,218.31,218.28,2.2911]
[1736050059119,2.2906,218.34,218.31,2.2908]
[1736050059120,11.08465929,218.34,218.31,2.2908]
[1736050060313,1.3618,218.36,218.33,2.2906]
[1736050060518,2.62,218.39,218.26,2.62]
[1736050061324,2.62,218.39,218.27,11.08465929]
[1736050061622,2.62,218.39,218.35,2.2904]
[1736050061822,11.08465929,218.4,218.27,11.08465929]
[1736050063323,11.08465929,218.4,218.36,2.2903]
[1736050064225,7.08957102,218.37,218.36,2.2903]
[1736050068325,2.9286,218.41,218.36,2.2903]
[1736050068724,7.08957102,218.37,218.36,2.2903]
[1736050070225,5.5486,218.41,218.37,2.2902]
[1736050070529,7.08957102,218.38,218.37,2.2902]
[1736050072230,7.08957102,218.38,218.28,9.89327102]
[1736050072527,5.5486,218.41,218.36,2.2903]
[1736050074631,7.08957102,218.37,218.36,2.2903]
[1736050077137,7.08957102,218.37,218.28,2.8037]
[1736050077334,7.08957102,218.32,218.28,2.8037]
[1736050078138,7.08957102,218.32,218.31,2.2908]
[1736050084742,2.2901,218.38,218.31,2.2908]
[1736050084943,7.08957102,218.32,218.31,2.2908]
[1736050087050,2.2901,218.38,218.31,2.2908]
[1736050087246,2.29,218.39,218.32,2.2907]
[1736050087446,7.08957102,218.33,218.32,2.2907]
[1736050092450,7.08957102,218.33,218.3,2.2909]
[1736050092648,7.08957102,218.31,218.3,2.2909]
[1736050094652,4.8903,218.36,218.3,2.2909]
[1736050094851,7.08957102,218.31,218.3,2.2909]
[1736050097958,7.08957102,218.31,218.24,6.28972561]
[1736050098161,7.08957102,218.27,218.24,6.28972561]
[1736050098351,7.08957102,218.27,218.23,25.19282858]
[1736050098758,7.08957102,218.27,218.25,2.2914]
[1736050099365,7.08957102,218.29,218.28,2.2911]
[1736050106762,7.08957102,218.3,218.28,2.2911]
[1736050111869,7.08957102,218.3,218.26,2.2913]
[1736050112070,7.08957102,218.3,218.24,2.6]
[1736050112474,7.08957102,218.28,218.21,8.86972561]
[1736050112763,7.08957102,218.28,218.21,15.95929663]
[1736050113372,7.08957102,218.28,218.21,9.66957102]
[1736050113566,7.08957102,218.28,218.25,2.2914]
[1736050115567,7.08957102,218.28,218.26,2.2913]
[1736050116569,7.08957102,218.3,218.26,2.2913]
[1736050120675,2.2907,218.33,218.26,2.2913]
[1736050120875,7.08957102,218.29,218.26,2.2913]
[1736050122172,2.2907,218.33,218.26,2.2913]
[1736050122373,7.08957102,218.29,218.26,2.2913]
[1736050125170,2.6,218.35,218.24,2.2915]
[1736050125383,7.08957102,218.27,218.24,2.2915]
[1736050126579,7.08957102,218.29,218.26,2.2914]
[1736050126978,2.2907,218.33,218.26,2.2914]
[1736050127183,7.08957102,218.3,218.26,2.2914]
[1736050135590,2.2903,218.36,218.29,2.291]
[1736050135885,7.08957102,218.33,218.29,2.291]
[1736050139394,2.2903,218.36,218.29,2.291]
[1736050139790,7.08957102,218.36,218.28,7.08957102]
[1736050140199,7.08957102,218.36,218.32,2.2907]
[1736050141797,7.08957102,218.34,218.3,2.2909]
[1736050142093,7.08957102,218.32,218.3,2.2909]
[1736050144787,7.08957102,218.34,218.3,2.2909]
[1736050147297,7.08957102,218.34,218.31,2.2908]
[1736050147500,7.08957102,218.34,218.27,7.08957102]
[1736050147701,7.08957102,218.36,218.29,7.08957102]
[1736050148098,7.08957102,218.37,218.34,2.2905]
[1736050148295,1.4311,218.38,218.34,2.2905]
[1736050148500,7.08957102,218.37,218.34,2.2905]
[1736050150009,2.9286,218.41,218.31,7.08957102]
[1736050150305,11.11830421,218.51,218.4,7.08957102]
[1736050150502,7.08957102,218.5,218.42,7.08957102]
[1736050150696,3.6783,218.54,218.46,2.2892]
[1736050151003,7.08957102,218.49,218.46,2.2892]
[1736050152404,7.08957102,218.49,218.44,2.2894]
[1736050154202,7.08957102,218.49,218.45,2.58]
[1736050157907,7.08957102,218.49,218.46,2.2892]
[1736050160014,1.3898,218.54,218.39,2.29]
[1736050160015,7.08957102,218.47,218.39,2.29]
[1736050160211,7.08957102,218.4,218.39,4.87]
[1736050160811,7.08957102,218.42,218.39,4.87]
[1736050161215,7.08957102,218.42,218.39,2.58]
[1736050161512,7.08957102,218.42,218.4,2.2899]
[1736050164015,7.08957102,218.42,218.4,4.8699]
[1736050164606,2.2891,218.48,218.4,4.8699]
[1736050164806,7.08957102,218.42,218.4,4.8699]
[1736050166923,7.08957102,218.42,218.4,2.2899]
[1736050167616,7.08957102,218.42,218.38,2.2901]
[1736050168022,7.08957102,218.4,218.38,2.2901]
[1736050170221,7.08957102,218.42,218.39,2.29]
[1736050174525,1.4724,218.46,218.39,2.29]
[1736050174526,7.08957102,218.44,218.39,2.29]
[1736050175429,1.4724,218.46,218.37,9.66957102]
[1736050175728,7.08957102,218.43,218.4,2.2899]
[1736050180925,7.08957102,218.43,218.38,2.29]
[1736050182331,7.08957102,218.39,218.36,2.2903]
[1736050182524,7.08957102,218.37,218.35,2.58]
[1736050182729,7.08957102,218.37,218.3,6.28972561]
[1736050182730,7.08957102,218.37,218.34,2.58]
[1736050183329,7.08957102,218.37,218.3,13.37929663]
[1736050183528,7.08957102,218.37,218.33,2.2906]
[1736050184230,7.08957102,218.37,218.31,2.58]
[1736050184431,7.08957102,218.37,218.34,2.2905]
[1736050185333,7.08957102,218.39,218.32,7.08957102]
[1736050185532,7.08957102,218.39,218.34,7.08957102]
[1736050185932,4.0524,218.46,218.34,7.08957102]
[1736050186233,7.08957102,218.4,218.34,7.08957102]
[1736050187435,7.08957102,218.4,218.36,2.2902]
[1736050188835,7.08957102,218.39,218.36,2.2902]
[1736050195539,7.08957102,218.37,218.34,2.2904]
[1736050197537,7.08957102,218.35,218.32,2.2907]
[1736050198342,7.08957102,218.35,218.27,28.00352858]
[1736050198343,7.08957102,218.33,218.28,4.8711]
[1736050198542,7.08957102,218.33,218.28,2.58]
[1736050199443,7.08957102,218.33,218.29,2.291]
[1736050201342,7.08957102,218.33,218.26,7.08957102]
[1736050201538,7.08957102,218.27,218.23,6.28972561]
[1736050201947,7.08957102,218.27,218.25,2.2915]
[1736050202245,7.08957102,218.29,218.25,2.2915]
[1736050205746,7.08957102,218.27,218.25,2.2915]
[1736050207750,2.2907,218.33,218.25,2.2915]
[1736050208049,7.08957102,218.28,218.25,2.2915]
[1736050210652,7.08957102,218.28,218.21,9.66957102]
[1736050210951,7.08957102,218.26,218.23,2.2916]
[1736050214154,7.08957102,218.24,218.16,2.8754]
[1736050214353,7.08957102,218.22,218.19,2.2921]
[1736050216654,7.08957102,218.2,218.19,2.2921]
[1736050217554,7.08957102,218.2,218.16,2.2924]
[1736050217748,7.08957102,218.18,218.13,2.58]
[1736050218156,7.08957102,218.18,218.15,2.2925]
[1736050219658,7.08957102,218.18,218.13,2.58]
[1736050219859,7.08957102,218.18,218.16,2.2924]
[1736050220253,2.58,218.24,218.14,7.08957102]
[1736050220454,7.08957102,218.22,218.19,2.2921]
[1736050220954,7.08957102,218.22,218.2,2.292]
[1736050222659,7.08957102,218.22,218.18,2.2921]
[1736050222857,2.58,218.24,218.18,2.2921]
[1736050222858,7.08957102,218.19,218.18,2.2921]
[1736050223363,7.08957102,218.19,218.12,9.66957102]
[1736050223557,7.08957102,218.19,218.16,2.2923]
[1736050224451,7.08957102,218.19,218.17,2.2923]
[1736050224862,7.08957102,218.19,218.12,7.08957102]
[1736050225062,7.08957102,218.19,218.18,2.2922]
[1736050226653,7.08957102,218.19,218.17,2.2923]
[1736050228765,7.08957102,218.19,218.15,2.2925]
[1736050229065,7.08957102,218.16,218.15,2.2925]
[1736050231363,2.8517,218.25,218.13,7.08957102]
[1736050231563,7.08957102,218.21,218.19,2.2921]
[1736050232063,1.3896,218.26,218.21,2.2918]
[1736050232370,7.08957102,218.23,218.21,2.2918]
[1736050237168,2.291,218.3,218.23,2.2917]
[1736050237472,7.08957102,218.26,218.19,7.08957102]
[1736050237972,7.08957102,218.26,218.23,2.2916]
[1736050239472,7.6974,218.31,218.15,6.28972561]
[1736050239473,7.08957102,218.24,218.15,6.28972561]
[1736050239777,7.08957102,218.16,218.15,6.28972561]
[1736050240573,7.08957102,218.16,218.1,2.8561]
[1736050240773,4.8719,218.21,218.13,2.2927]
[1736050241866,2.58,218.21,218.13,2.2927]
[1736050242971,7.08957102,218.14,218.1,1.4056]
[1736050243870,7.08957102,218.14,218.12,2.2927]
[1736050244378,7.08957102,218.14,218.1,1.4056]
[1736050244575,7.08957102,218.14,218.13,2.2927]
[1736050245176,2.58,218.21,218.1,1.4056]
[1736050245475,7.08957102,218.15,218.14,2.2926]
[1736050262293,7.08957102,218.15,218.08,2.58]
[1736050262492,7.08957102,218.11,218.07,1.393]
[1736050262803,2.2921,218.19,218.07,1.393]
[1736050262999,7.08957102,218.11,218.1,2.293]
[1736050264505,2.2921,218.19,218.11,2.2929]
[1736050264703,7.08957102,218.12,218.11,2.2929]
[1736050267207,2.2921,218.19,218.11,2.2929]
[1736050267407,7.08957102,218.12,218.11,2.2929]
[1736050270206,2.8747,218.21,218.15,2.2924]
[1736050270406,7.08957102,218.16,218.07,8.48257102]
[1736050270706,7.08957102,218.16,218.09,7.08957102]
[1736050270905,7.08957102,218.13,218.1,2.58]
[1736050271808,2.58,218.2,218.13,2.2927]
[1736050272011,7.08957102,218.14,218.13,2.2927]
[1736050272612,7.08957102,218.14,218.11,2.2929]
[1736050272911,7.08957102,218.12,218.11,2.2929]
[1736050274413,7.08957102,218.14,218.07,1.393]
[1736050274610,7.08957102,218.14,218.13,2.2927]
[1736050284419,7.08957102,218.16,218.15,2.2925]
[1736050285119,7.08957102,218.16,218.08,7.08957102]
[1736050285318,7.08957102,218.16,218.1,6.28972561]
[1736050285911,7.08957102,218.16,218.09,29.26661059]
[1736050286315,2.8747,218.21,218.1,7.08957102]
[1736050286517,8.46747102,218.22,218.19,2.2921]
[1736050286721,7.08957102,218.22,218.19,2.2921]
[1736050289615,7.08957102,218.22,218.2,2.292]
[1736050290015,33.33594779,218.26,218.2,2.292]
[1736050290218,1.4196,218.3,218.26,2.2913]
[1736050290419,1.4196,218.3,218.22,7.08957102]
[1736050290820,1.4196,218.3,218.24,7.08957102]
[1736050291218,7.08957102,218.27,218.23,2.2917]
[1736050291919,7.08957102,218.25,218.21,2.2918]
[1736050292115,2.58,218.29,218.21,2.2918]
[1736050292622,7.08957102,218.24,218.21,2.2918]
[1736050293124,7.08957102,218.24,218.22,2.2918]
[1736050294025,2.58,218.29,218.22,2.2918]
[1736050294225,7.08957102,218.24,218.22,2.2918]
[1736050295120,7.08957102,218.26,218.19,9.66957102]
[1736050295516,7.08957102,218.26,218.19,2.58]
[1736050295730,7.08957102,218.26,218.19,9.66957102]
[1736050295925,1.4196,218.3,218.19,9.66957102]
[1736050296225,7.08957102,218.27,218.21,7.08957102]
[1736050296635,7.08957102,218.27,218.19,2.58]
[1736050296825,7.08957102,218.27,218.21,7.08957102]
[1736050298626,7.08957102,218.27,218.24,2.2916]
[1736050301128,1.4196,218.3,218.24,2.2916]
[1736050301330,7.08957102,218.27,218.24,2.2916]
[1736050302929,7.08957102,218.29,218.21,7.08957102]
[1736050303131,7.08957102,218.31,218.27,2.2912]
[1736050303926,7.08957102,218.31,218.24,2.58]
[1736050304127,7.08957102,218.31,218.27,2.2912]
[1736050304322,7.08957102,218.31,218.25,7.08957102]
[1736050304630,7.08957102,218.33,218.25,7.08957102]
[1736050304831,7.08957102,218.33,218.31,2.2908]
[1736050305131,7.08957102,218.35,218.31,2.2908]
[1736050305732,7.08957102,218.35,218.29,2.291]
[1736050306032,7.08957102,218.35,218.27,7.08957102]
[1736050306223,7.08957102,218.35,218.32,2.2907]
[1736050306625,7.08957102,218.35,218.29,2.58]
[1736050307029,7.08957102,218.35,218.3,2.2908]
[1736050308030,7.08957102,218.33,218.28,2.58]
[1736050308232,7.08957102,218.29,218.28,2.58]
[1736050308430,2.58,218.34,218.26,2.2913]
[1736050308631,7.08957102,218.29,218.26,2.2913]
[1736050309827,7.08957102,218.29,218.24,2.58]
[1736050310033,7.08957102,218.29,218.24,4.8715]
[1736050311532,7.08957102,218.27,218.22,2.2917]
[1736050311935,7.08957102,218.27,218.21,2.58]
[1736050312236,7.08957102,218.27,218.23,2.2916]
[1736050315138,7.08957102,218.25,218.19,7.08957102]
[1736050315338,7.08957102,218.23,218.18,2.58]
[1736050315637,1.4,218.3,218.13,25.19282858]
[1736050315937,7.08957102,218.19,218.15,2.2925]
[1736050317142,7.08957102,218.19,218.12,9.66957102]
[1736050318646,7.08957102,218.19,218.14,2.2925]
[1736050320944,7.08957102,218.19,218.12,2.2928]
[1736050321150,7.08957102,218.17,218.12,2.2928]
[1736050322346,7.08957102,218.17,218.09,7.08957102]
[1736050322651,7.08957102,218.17,218.1,2.293]
[1736050322847,7.08957102,218.15,218.1,2.293]
[1736050323356,7.08957102,218.15,218.09,9.66957102]
[1736050323649,7.08957102,218.15,218.11,2.2929]
[1736050324446,2.58,218.18,218.06,2.2934]
[1736050324651,2.58,218.18,218.06,7.08957102]
[1736050324951,7.08957102,218.14,218.06,7.08957102]
[1736050326052,7.08957102,218.14,218.08,7.08957102]
[1736050326549,2.58,218.17,218.1,2.293]
[1736050326550,7.08957102,218.15,218.1,2.293]
[1736050326751,7.08957102,218.15,218.08,7.08957102]
[1736050326951,1.4596,218.2,218.12,2.2928]
[1736050327143,7.08957102,218.18,218.1,7.08957102]
[1736050328653,7.08957102,218.18,218.13,2.2927]
[1736050328850,7.08957102,218.18,218.1,7.08957102]
[1736050328851,7.08957102,218.22,218.14,7.08957102]
[1736050329050,7.08957102,218.24,218.19,2.2921]
[1736050330052,7.08957102,218.24,218.16,7.08957102]
[1736050330252,7.08957102,218.24,218.11,2.8394]
[1736050330253,7.08957102,218.22,218.17,2.2922]
[1736050330955,7.08957102,218.2,218.11,2.8394]
[1736050331152,7.08957102,218.2,218.11,9.92897102]
[1736050331355,7.08957102,218.18,218.11,8.52387102]
[1736050332354,7.08957102,218.18,218.12,2.2928]
[1736050332554,7.08957102,218.18,218.11,8.52387102]
[1736050332952,7.08957102,218.18,218.14,2.2926]
[1736050333157,7.08957102,218.18,218.11,8.52387102]
[1736050333158,9.66957102,218.2,218.13,7.08957102]
[1736050333757,9.66957102,218.2,218.15,2.2925]
[1736050333956,9.66957102,218.2,218.13,7.08957102]
[1736050334561,2.58,218.2,218.17,2.2923]
[1736050334763,7.08957102,218.22,218.17,2.2923]
[1736050336259,7.08957102,218.22,218.19,2.2921]
[1736050338558,3.7673,218.23,218.11,9.38247102]
[1736050338863,1.4756,218.23,218.17,7.08957102]
[1736050339062,1.4756,218.23,218.09,1.4199]
[1736050339262,1.4756,218.23,218.18,2.2921]
[1736050341066,7.08957102,218.2,218.14,9.66957102]
[1736050341257,7.08957102,218.2,218.12,7.08957102]
[1736050341463,7.08957102,218.21,218.14,7.08957102]
[1736050342260,7.08957102,218.21,218.11,2.58]
[1736050342563,7.08957102,218.2,218.15,2.2925]
[1736050344974,1.4756,218.23,218.15,2.2925]
[1736050345265,7.08957102,218.21,218.16,2.2924]
[1736050346668,7.08957102,218.19,218.14,2.2925]
[1736050347867,7.08957102,218.19,218.15,2.2925]
[1736050351374,7.08957102,218.2,218.15,2.2925]
[1736050353271,4.2321,218.23,218.13,7.08957102]
[1736050353475,7.08957102,218.22,218.18,2.2922]
[1736050355175,7.08957102,218.22,218.15,7.08957102]
[1736050355375,7.08957102,218.22,218.19,2.292]
[1736050355776,7.08957102,218.22,218.18,2.2922]
[1736050356475,7.08957102,218.22,218.17,2.2923]
[1736050357684,7.08957102,218.22,218.15,9.38207102]
[1736050357877,7.08957102,218.2,218.15,2.2925]
[1736050360081,7.08957102,218.22,218.15,2.2925]
[1736050361685,7.08957102,218.2,218.15,2.2925]
[1736050361985,9.38157102,218.2,218.12,27.48562858]
[1736050362986,7.08957102,218.2,218.12,25.19282858]
[1736050363191,7.08957102,218.2,218.13,2.2927]
[1736050364287,7.08957102,218.21,218.13,7.08957102]
[1736050365590,7.08957102,218.21,218.16,2.2924]
[1736050371103,7.08957102,218.23,218.15,7.08957102]
[1736050371396,7.08957102,218.25,218.17,7.08957102]
[1736050371896,7.08957102,218.25,218.2,2.292]
[1736050372300,1.4864,218.28,218.19,7.08957102]
[1736050372600,7.08957102,218.27,218.19,7.08957102]
[1736050373302,1.4864,218.28,218.19,7.08957102]
[1736050373500,7.08957102,218.26,218.19,7.08957102]
[1736050373701,7.08957102,218.26,218.16,25.19282858]
[1736050373902,7.08957102,218.26,218.17,6.28972561]
[1736050374101,7.08957102,218.24,218.17,13.37929663]
[1736050374302,7.08957102,218.24,218.19,2.2921]
[1736050374502,7.08957102,218.24,218.17,13.37929663]
[1736050374703,7.08957102,218.24,218.17,7.08957102]
[1736050375506,7.08957102,218.24,218.2,2.2919]
[1736050381505,7.08957102,218.21,218.16,2.2923]
[1736050381709,7.08957102,218.21,218.14,25.19282858]
[1736050382509,7.08957102,218.21,218.15,2.2925]
[1736050386010,7.08957102,218.19,218.13,2.2926]
[1736050386508,7.08957102,218.17,218.09,11.65362561]
[1736050386708,7.08957102,218.17,218.11,2.2928]
[1736050387414,7.08957102,218.15,218.09,11.36672561]
[1736050387615,7.08957102,218.15,218.09,2.2931]
[1736050388611,7.08957102,218.13,218.07,6.28972561]
[1736050388813,2.58,218.17,218.07,6.28972561]
[1736050389016,7.08957102,218.11,218.07,6.28972561]
[1736050389218,7.08957102,218.13,218.09,2.2931]
[1736050389416,7.08957102,218.16,218.09,7.08957102]
[1736050389812,7.08957102,218.16,218.11,2.2929]
[1736050391314,2.58,218.19,218.14,2.2926]
[1736050391519,7.08957102,218.17,218.14,2.2926]
[1736050393419,2.58,218.19,218.07,2.58]
[1736050393420,9.66957102,218.19,218.11,7.08957102]
[1736050394519,9.66957102,218.19,218.13,2.2927]
[1736050394718,9.66957102,218.19,218.11,7.08957102]
[1736050395415,9.66957102,218.19,218.13,2.2927]
[1736050395719,9.66957102,218.19,218.11,7.08957102]
[1736050396421,9.66957102,218.19,218.14,2.2925]
[1736050397722,9.66957102,218.19,218.15,2.2925]
[1736050398021,7.08957102,218.26,218.18,7.08957102]
[1736050399418,7.08957102,218.28,218.2,7.08957102]
[1736050400116,7.08957102,218.28,218.23,2.2917]
[1736050402426,7.08957102,218.26,218.23,2.2917]
[1736050403323,7.08957102,218.26,218.21,2.2918]
[1736050403520,7.08957102,218.24,218.21,2.2918]
[1736050403715,7.08957102,218.24,218.17,7.08957102]
[1736050404116,2.2911,218.29,218.19,7.08957102]
[1736050404328,2.58,218.3,218.19,7.08957102]
[1736050404523,7.08957102,218.27,218.23,2.2916]
[1736050406825,7.08957102,218.29,218.21,7.08957102]
[1736050407026,7.08957102,218.29,218.23,7.08957102]
[1736050408724,7.08957102,218.31,218.26,2.2914]
[1736050409728,7.08957102,218.31,218.27,2.2912]
[1736050409931,7.08957102,218.33,218.25,7.08957102]
[1736050410130,7.08957102,218.33,218.25,9.66957102]
[1736050410332,7.08957102,218.33,218.28,2.2911]
[1736050412023,4.8702,218.37,218.28,2.2911]
[1736050412327,7.08957102,218.33,218.28,2.2911]
[1736050413030,7.08957102,218.33,218.25,9.66957102]
[1736050413232,7.08957102,218.33,218.29,2.291]
[1736050418529,7.08957102,218.33,218.22,1.4775]
[1736050418834,2.58,218.38,218.25,7.08957102]
[1736050419025,7.08957102,218.34,218.25,7.08957102]
[1736050419228,7.08957102,218.34,218.29,2.291]
[1736050419925,2.8835,218.4,218.32,7.08957102]
[1736050420234,2.8835,218.4,218.36,2.2903]
[1736050422627,7.08957102,218.39,218.34,2.2904]
[1736050422832,7.08957102,218.39,218.32,9.66957102]
[1736050423131,7.08957102,218.39,218.32,7.08957102]
[1736050423332,7.08957102,218.39,218.35,2.2904]
[1736050423535,7.08957102,218.39,218.32,7.08957102]
[1736050424635,7.08957102,218.39,218.35,2.2903]
[1736050424829,7.08957102,218.39,218.3,2.58]
[1736050425131,7.08957102,218.36,218.31,2.2908]
[1736050425336,2.29,218.39,218.31,2.2908]
[1736050425635,1.4266,218.4,218.34,7.08957102]
[1736050425935,1.4525,218.41,218.34,7.08957102]
[1736050426334,7.08957102,218.4,218.36,2.2903]
[1736050429333,7.08957102,218.38,218.32,2.2906]
[1736050429532,1.4525,218.41,218.32,7.08957102]
[1736050429732,7.08957102,218.39,218.32,7.08957102]
[1736050429931,1.4525,218.41,218.34,2.2904]
[1736050430137,7.08957102,218.4,218.32,7.08957102]
[1736050431533,7.08957102,218.4,218.36,2.2903]
[1736050432034,7.08957102,218.38,218.36,2.2903]
[1736050432633,7.08957102,218.38,218.34,2.2904]
[1736050433243,1.4525,218.41,218.32,7.08957102]
[1736050433539,7.08957102,218.4,218.35,2.2904]
[1736050433835,7.08957102,218.38,218.35,2.2904]
[1736050434237,7.08957102,218.36,218.3,2.2909]
[1736050434438,7.08957102,218.34,218.27,9.66957102]
[1736050435438,7.08957102,218.34,218.28,2.2911]
[1736050436639,7.08957102,218.33,218.28,2.2911]
[1736050437839,1.4525,218.41,218.23,2.2916]
[1736050437840,7.08957102,218.29,218.23,2.2916]
[1736050438036,7.08957102,218.25,218.21,26.54922858]
[1736050438343,7.08957102,218.25,218.21,27.77282858]
[1736050438641,7.08957102,218.26,218.22,2.2918]
[1736050439641,7.08957102,218.24,218.18,25.19282858]
[1736050439839,7.08957102,218.2,218.16,25.19282858]
[1736050440741,7.08957102,218.18,218.16,25.19282858]
[1736050440944,7.08957102,218.18,218.14,2.6]
[1736050441133,1.4869,218.26,218.11,25.19282858]
[1736050441134,7.08957102,218.15,218.11,25.19282858]
[1736050442246,7.08957102,218.15,218.1,2.6]
[1736050442740,7.08957102,218.13,218.05,6.28972561]
[1736050442943,7.08957102,218.11,218.06,2.6]
[1736050443649,5.4225,218.17,218.06,9.68957102]
[1736050443837,7.08957102,218.14,218.06,9.68957102]
[1736050445450,7.08957102,218.14,218.09,2.2931]
[1736050445839,2.6,218.17,218.1,7.08957102]
[1736050446038,2.6,218.23,218.12,7.08957102]
[1736050446246,7.08957102,218.2,218.14,7.08957102]
[1736050447644,7.08957102,218.2,218.11,2.6]
[1736050447850,7.08957102,218.2,218.12,7.08957102]
[1736050448554,7.08957102,218.2,218.13,2.2926]
[1736050449040,7.08957102,218.2,218.14,2.2926]
[1736050450353,7.08957102,218.16,218.11,2.2929]
[1736050452054,7.08957102,218.16,218.11,7.08957102]
[1736050452253,7.08957102,218.18,218.11,7.08957102]
[1736050452954,7.08957102,218.18,218.14,2.2926]
[1736050454254,7.08957102,218.18,218.12,2.2928]
[1736050454555,7.08957102,218.18,218.11,7.08957102]
[1736050455457,4.4314,218.24,218.11,2.2929]
[1736050455458,7.08957102,218.16,218.11,2.2929]
[1736050456261,7.08957102,218.16,218.09,9.68957102]
[1736050456461,2.6,218.23,218.13,7.08957102]
[1736050456752,7.08957102,218.2,218.13,7.08957102]
[1736050458563,7.08957102,218.2,218.16,2.2924]
[1736050458759,7.08957102,218.22,218.15,7.08957102]
[1736050459160,7.08957102,218.22,218.17,2.2923]
[1736050459363,7.08957102,218.22,218.15,7.08957102]
[1736050460466,7.08957102,218.22,218.18,2.2922]
[1736050463962,7.08957102,218.22,218.15,7.08957102]
[1736050464159,7.08957102,218.22,218.19,2.2921]
[1736050465865,7.08957102,218.2,218.17,2.2922]
[1736050469767,7.08957102,218.18,218.15,2.2925]
[1736050470171,7.08957102,218.16,218.11,2.58]
[1736050470369,7.08957102,218.16,218.13,2.2926]
[1736050471271,7.08957102,218.14,218.06,7.08957102]
[1736050471569,7.08957102,218.12,218.05,25.19282858]
[1736050471763,7.08957102,218.12,218.05,18.90310297]
[1736050471970,7.08957102,218.12,218.04,7.08957102]
[1736050472269,7.08957102,218.1,218.04,7.08957102]
[1736050472464,7.08957102,218.12,218.04,7.08957102]
[1736050472665,7.08957102,218.13,218.06,7.08957102]
[1736050473173,2.58,218.15,218.06,7.08957102]
[1736050473367,7.08957102,218.13,218.06,7.08957102]
[1736050473672,7.08957102,218.13,218.09,2.2931]
[1736050474874,7.08957102,218.13,218.08,2.2932]
[1736050475073,7.08957102,218.13,218.06,7.08957102]
[1736050476277,7.08957102,218.13,218.06,9.66957102]
[1736050476580,7.08957102,218.13,218.09,2.2931]